Cogmind - Beta 17.1 @@@ ROGUE MODE // 2026.09.16 @ 23:09:36 Player: Kite Result: Self-destructed Performance ------------- Evolutions (8) 4000 Regions Visited (23) 4600 Robots Destroyed (311) 1555 Value Destroyed (17008) 17008 Prototype IDs (71) 1420 Alien Tech Used (13) 2600 Bonus (18420) 18420 TOTAL SCORE: 49603 Bonus ------- Triggered High Security 1000 High Alert Combat Kills 4083 Follower Combat Kills 6506 Hunted by Unchained 500 Network Hubs Disabled 800 Registered with UFD 300 Met Optimus in HQ 500 Built Enhanced Grunts 300 Met R17 at Cetus 500 Found Hidden Lab 3000 Used Core Reset Matrix 3000 Met R17 at Research 2000 Scanned by Researcher 500 Pursued by Intercept 500 Friendly Fire -5069 Cogmind --------- Core Integrity 358/1450 Matter 154/300 Energy 670/670 System Corruption 5% Temperature Cool (9) Movement Treading (158) Location -2/Section 7 Parts ------- > --- POWER (3) -------- Light Antimatter Reactor Quantum Reactor (fused) Improved Quantum Reactor > --- PROPULSION (6) --- Armored Heavy Treads Biometal Heavy Treads High-density Centrium Heavy Treads > --- UTILITY (9) ------ Huge Storage Unit Advanced Signal Interpreter Experimental Core Analyzer Centrium Light Armor Plating Medium Regenerative Plating Graphene Brace Experimental EM Shield Advanced Hacking Suite Quantum Router > --- WEAPON (5) ------- DM-GVY's Chainsaw Sigix Broadsword Sigix Broadsword > --- INVENTORY (25) --- Quantum Reactor Armored Heavy Treads Armored Heavy Treads Armored Heavy Treads Advanced Heavy Siege Treads Deep Structural Scanner Advanced Sensor Array Improved Actuator Array Integrity Redistributor Microwarp Drive Core Cannon Sigix Shearcannon Nanosword Force Lance Peak State ------------ > --- POWER ------------ Light Quantum Reactor Vortex Chain Reactor > --- PROPULSION ------- Advanced Heavy Siege Treads High-density Centrium Heavy Treads High-density Centrium Heavy Treads > --- UTILITY ---------- Huge Storage Unit Experimental Terrain Scan Processor Improved Actuator Array Medium Regenerative Plating Phase Armor Graphene Brace Experimental Force Field Quantum Router > --- WEAPON ----------- DM-GVY's Chainsaw Sigix Broadsword Sigix Broadsword > --- INVENTORY -------- Vortex Chain Reactor Armored Heavy Treads Armored Heavy Treads Armored Heavy Treads Armored Heavy Treads Centrium Heavy Treads Biometal Heavy Treads Advanced Matter Compressor Deep Structural Scanner Experimental EM Shield Advanced Force Field Transdimensional Reconstructor Core Regenerator Fusion Bomb Launcher Core Stripper Nanosword Force Lance [Rating: 251] Favorites ----------- Power Quantum Reactor Engine Makeshift Power Source Power Core Neutrino Core Reactor Quantum Reactor Propulsion Overtuned Huge Scrapsphere Treads Light Treads Leg Enhanced Armored Leg Wheel Overtuned Huge Scrapsphere Utility Huge Storage Unit Device Scrap Suit Storage Huge Storage Unit Processor Experimental Terrain Scan Processor Hackware Quantum Router Protection Medium Regenerative Plating Artifact Phase Armor Weapon KE Penetrator Energy Gun Heavy Wave Gun Energy Cannon Subdweller Beam Cannon Ballistic Gun KE Penetrator Ballistic Cannon Light Antimatter Cannon Launcher Subdweller Shrapnel Launcher Special Weapon CPS Tube Impact Weapon Heavy Mace Slashing Weapon Sigix Broadsword Piercing Weapon Heavy Pick Build | -11 -10 -10 -8 -8 -6 -6 -6 -6 -6 -6 -5 -5 -5 -5 -5 -5 -4 -3 -3 -3 -2 -2 -2 ------- Run | Yrd Mat Sub Rec Scr Fac Was Fac Low Low Zio Pro Fac Ext Cet Arc Hub Fac Res Arm Lab Res Qua Sec Slots Evolved 16 | . . . . . 8 . . . . . . 2 . . . . 2 2 . . 2 . . Power 2 | . . . . . . . . . . . . 1 . . . . . . . . 1 . . Propulsion 4 | . . . . . 4 . . . . . . . . . . . . . . . . . . Utility 7 | . . . . . 2 . . . . . . 1 . . . . 2 1 . . 1 . . Weapon 3 | . . . . . 2 . . . . . . . . . . . . 1 . . . . . Parts Attached 294 | 6 11 8 7 4 23 7 10 2 3 5 7 6 9 20 8 15 7 30 28 2 8 54 14 Power 43 | 1 3 1 . 1 2 1 2 . . . . 1 . 4 1 4 1 2 2 1 3 9 4 Engine 9 | 1 2 1 . 1 . . 1 . . . . 1 . . . 1 . . . . . 1 . Core 9 | . 1 . . . 2 . 1 . . . . . . . . 3 1 . 1 . . . . Reactor 25 | . . . . . . 1 . . . . . . . 4 1 . . 2 1 1 3 8 4 Propulsion 58 | 2 . 2 4 2 9 4 3 . 2 1 4 2 1 . . 5 3 4 . . 1 8 1 Treads 32 | 2 . 1 1 . 4 4 2 . . . . . . . . 1 3 4 . . 1 8 1 Leg 12 | . . . . . 1 . . . 1 1 4 2 1 . . 2 . . . . . . . Wheel 14 | . . 1 3 2 4 . 1 . 1 . . . . . . 2 . . . . . . . Hover . | . . . . . . . . . . . . . . . . . . . . . . . . Flight . | . . . . . . . . . . . . . . . . . . . . . . . . Utility 109 | 1 2 1 1 1 6 1 2 . . 3 . 2 4 7 7 6 2 13 12 1 3 26 8 Device 56 | . 1 . . . 4 . 1 . . . . . 3 2 5 4 1 7 10 . 1 17 . Storage 8 | 1 . 1 . . . . . . . 1 . . . 1 . 1 . . 1 . . 1 1 Processor 17 | . . . . . 1 . 1 . . 1 . 1 . . 1 . 1 3 1 . 1 2 4 Hackware 8 | . . . 1 . . . . . . 1 . 1 . . . . . 3 . . 1 . 1 Protection 18 | . 1 . . 1 1 1 . . . . . . 1 4 1 1 . . . 1 . 5 1 Artifact 2 | . . . . . . . . . . . . . . . . . . . . . . 1 1 Weapon 84 | 2 6 4 2 . 6 1 3 2 1 1 3 1 4 9 . . 1 11 14 . 1 11 1 Energy Gun 24 | 2 . . . . 3 . 1 1 . . 1 . . 2 . . . 7 5 . . 2 . Energy Cannon 6 | . 2 2 . . . . . . . . . . . . . . . 1 . . . . 1 Ballistic Gun 35 | . 3 1 . . 1 . 1 1 . 1 1 1 3 6 . . . 2 7 . 1 6 . Ballistic Cannon 1 | . . . . . . . . . . . . . . . . . . 1 . . . . . Launcher 3 | . 1 1 . . . . . . . . 1 . . . . . . . . . . . . Special Weapon 4 | . . . . . 2 1 . . . . . . 1 . . . . . . . . . . Impact Weapon 2 | . . . 1 . . . . . . . . . . . . . . . . . . 1 . Slashing Weapon 6 | . . . 1 . . . . . 1 . . . . 1 . . . . 1 . . 2 . Piercing Weapon 3 | . . . . . . . 1 . . . . . . . . . 1 . 1 . . . . Special Melee Weapon . | . . . . . . . . . . . . . . . . . . . . . . . . Unidentified Prototypes 49 | . 1 . . . . . 1 . . . . 3 . 6 . 1 . 4 14 2 2 12 3 Corrupted Parts 7 | . . . 1 . . . . . 1 . . . . 5 . . . . . . . . . System Corruption 29 | . . . 2 . . . . . 10 . . . . 17 . . . . . . . . . Parts Lost 59 | . 1 6 . 1 6 . 12 3 . . . 1 1 . . 9 6 2 . . 2 7 2 Power 13 | . 1 1 . . 1 . 2 . . . . . . . . 3 1 . . . 1 2 1 Propulsion 15 | . . 1 . 1 4 . 3 1 . . . . . . . 1 3 . . . . 1 . Utility 9 | . . . . . 1 . 1 . . . . . 1 . . 1 1 2 . . . 1 1 Weapon 22 | . . 4 . . . . 6 2 . . . 1 . . . 4 1 . . . 1 3 . Highest Loss Streak 10 | . 1 2 . 1 4 . 10 2 . . . 1 1 . . 5 4 1 . . 1 5 1 To Critical Strikes 2 | . . 1 . . . . 1 . . . . . . . . . . . . . . . . Average Backups 17 | 2 7 13 23 20 18 19 15 16 17 23 26 15 15 15 16 14 13 20 21 22 19 17 16 Power 1 | . . 2 4 1 . . . 1 1 . 1 . . . . . . . 1 . . . 1 Propulsion 4 | 1 2 3 9 6 2 4 4 3 2 2 3 3 4 2 4 4 3 3 4 4 4 5 4 Utility 7 | . 1 3 6 7 9 9 7 7 8 13 14 9 10 9 8 7 8 13 8 8 7 5 3 Weapon 3 | . 2 2 3 3 4 3 2 4 4 5 6 2 1 3 2 2 1 2 6 6 5 4 2 Tool/Special . | . . . . . . . . . . . . . . . . . . . . . . . . Unused Backups 105 | . 10 . 4 10 3 7 4 . 1 . 1 5 3 11 5 3 . 14 9 2 1 5 7 Power 12 | . 1 . 2 3 . . . . . . 1 . . 1 . . . 2 1 . . . 1 Propulsion 20 | . 4 . . 2 . . 2 . . . . . 1 4 . . . . 3 . . 2 2 Utility 51 | . 3 . 2 5 3 6 1 . 1 . . 4 2 6 4 2 . 8 2 1 . 1 . Weapon 14 | . 2 . . . . . 1 . . . . 1 . . 1 . . 3 3 1 . 1 1 Tool/Special 8 | . . . . . . 1 . . . . . . . . . 1 . 1 . . 1 1 3 Average Slot Usage (%) 84 | . 98 98 100 94 67 76 72 67 68 67 70 88 88 90 93 92 63 80 89 90 88 79 72 Engine 3 | . 13 13 14 8 . . . . . . . 4 5 3 . . . . . . . . . Core 2 | . . . . 3 4 1 . 6 6 5 5 5 5 2 . 7 8 4 4 . . . . Reactor 3 | . . . . . . 4 4 . . . . . . 2 10 1 . 3 4 7 10 10 9 Treads 10 | . 27 21 . . 8 15 12 5 . . . . . . . . 7 17 19 19 17 13 13 Leg 3 | . . . . . . . . . . 1 5 26 26 26 26 24 . . . . . . . Wheel 6 | . . 6 27 26 15 8 6 13 18 17 10 . . . . 1 7 . . . . . . Device 8 | . 2 . . . 7 12 12 13 13 6 5 8 10 10 11 10 13 9 6 9 10 16 12 Storage 7 | . 14 13 14 13 6 6 6 6 6 5 5 5 5 5 5 5 5 4 4 4 4 4 4 Processor 3 | . . . . . 2 . . . . . 5 8 7 5 8 6 4 10 15 14 8 4 5 Hackware 3 | . . . 7 8 . . . . . . 5 7 5 5 5 2 . 4 4 4 7 4 7 Protection 5 | . 10 14 6 5 1 . . . . . . . . 8 5 4 5 5 4 4 6 5 3 Energy Gun 4 | . 1 . . . 3 17 17 18 13 12 1 . . . . . . 8 10 4 8 2 . Ballistic Gun 10 | . 24 22 . . 4 6 7 2 6 10 21 12 20 17 19 21 4 2 12 14 12 10 . Impact Weapon 1 | . . . 12 12 4 . . . . . . . . . . . . . . . . . . Slashing Weapon 3 | . . . 12 12 4 1 . . 3 1 . 3 . 1 1 . . . . . . 4 12 Peak Build Rating 251 | 6 14 18 23 26 71 89 89 88 84 97 98 116 127 154 153 149 116 153 171 173 197 251 248 Average Rating 108 | 4 11 13 21 22 51 81 86 78 79 86 96 106 121 137 148 132 103 138 156 170 188 205 231 On Entrance 95 | . 6 12 18 23 25 70 87 88 74 83 93 94 116 127 151 149 78 94 134 166 173 181 242 Avg Prop Armor Cover (%) 10 | . 10 13 4 . 12 10 12 7 7 7 7 . 3 . . 10 12 . . . . . . Naked Turns . | . . . . . . . . . . . . . . . . . . . . . . . . Heaviest Build 234 | 13 17 101 101 98 121 127 117 116 112 233 234 130 150 174 160 162 146 156 155 174 202 221 219 Greatest Support 260 | 40 40 40 26 40 44 210 140 40 60 60 137 145 150 150 150 150 190 225 215 215 220 260 245 Greatest Overweight (x) 31 | . . 6 10 26 31 5 5 2 2 5 5 . 1 1 1 3 6 1 . . . 1 . Average Overweight (x) 1 | . . 2 4 3 5 1 2 2 1 3 4 . . . . . 3 . . . . . . Largest Inventory Capacity 35 | 8 8 25 25 25 25 25 25 25 25 35 35 35 25 25 25 25 25 25 25 25 25 25 25 Average Capacity 23 | 7 8 19 25 24 25 25 25 25 25 33 35 25 25 25 25 25 25 25 25 25 25 25 25 Most Carried 35 | 6 8 25 25 25 25 25 25 25 25 34 35 34 25 25 25 25 18 25 25 25 25 25 25 Average Carried 22 | 2 7 14 24 22 22 24 24 24 24 30 33 25 24 23 24 23 14 22 24 24 24 24 24 Final Capacity 35 | 8 8 25 25 25 25 25 25 25 25 35 35 25 25 25 25 25 25 25 25 25 25 25 25 Final Carried 35 | 6 8 25 25 25 25 25 25 25 25 32 35 25 25 25 25 16 14 25 25 24 25 25 22 Scrap Suit Usage (%) 18 | . . . . . 41 100 96 65 23 18 85 2 70 3 . 11 55 . . . . . . Parts Cannibalized 20 | . . . . . . 1 4 1 . . 1 . 12 . . 1 . . . . . . . Class Distribution -------------------- 28% | Mutant 14% | Scavenger-Scrapper 9% | Hacker-Tank 8% | Commander-Tank 8% | Alien-Gladiator 7% | Hauler-Scrapper 6% | Scavenger-Tank 4% | Commander-Skirmisher 3% | Scavenger-Mutant Dominant Class ---------------- Mutant | -10/Materials Mutant | -10/Subcaves Mutant | -8/Recycling Mutant | -8/Scraptown Scavenger-Scrapper | -6/Factory Scavenger-Scrapper | -6/Waste Scavenger-Scrapper | -6/Factory Scavenger-Scrapper | -6/Lower Caves Scavenger-Scrapper | -6/Lower Caves Hauler-Scrapper | -6/Zion Hauler-Scrapper | -5/Proximity Caves Scavenger-Mutant | -5/Factory Commander-Tank | -5/Extension Commander-Tank | -5/Cetus Commander-Skirmisher | -5/Archives Commander-Skirmisher | -5/Hub_04(d) Scavenger-Mutant | -4/Factory Scavenger-Tank | -3/Research Scavenger-Tank | -3/Armory Commander-Tank | -3/Lab Hacker-Tank | -2/Research Hacker-Tank | -2/Quarantine Hacker-Gladiator | -2/Section 7 Resources | -11 -10 -10 -8 -8 -6 -6 -6 -6 -6 -6 -5 -5 -5 -5 -5 -5 -4 -3 -3 -3 -2 -2 -2 ----------- Run | Yrd Mat Sub Rec Scr Fac Was Fac Low Low Zio Pro Fac Ext Cet Arc Hub Fac Res Arm Lab Res Qua Sec Matter Collected 14651 | 112 857 644 276 120 843 467 616 106 56 112 388 117 1036 578 275 1148 37 776 1088 . 909 3565 525 Remotely 2698 | . 222 . . . . . . . . . . . . . . 437 . . 815 . 517 707 . Salvage Created 19299 | 16 855 305 835 . 434 880 2869 163 50 . 532 117 1651 187 238 2469 53 372 972 . 1598 2360 2343 Parts 910 | 2 53 23 28 . 21 20 115 5 1 . 26 3 89 15 18 99 6 8 48 . 83 125 122 Haulers Intercepted 7 | . 2 . . . . . 1 . . . . 1 1 . . 2 . . . . . . . Recyclers Shooed 8 | . . . 2 . . . 5 . . . . . . . . . . . . . 1 . . Parts Field Recycled . | . . . . . . . . . . . . . . . . . . . . . . . . Retrieved Matter . | . . . . . . . . . . . . . . . . . . . . . . . . Parts Self-Destructed 43 | . . 8 . 2 . . . 2 1 . 30 . . . . . . . . . . . . Prevented 4 | . . . . . . . . 2 . . 2 . . . . . . . . . . . . Parts Restored . | . . . . . . . . . . . . . . . . . . . . . . . . Kills | -11 -10 -10 -8 -8 -6 -6 -6 -6 -6 -6 -5 -5 -5 -5 -5 -5 -4 -3 -3 -3 -2 -2 -2 ------- Run | Yrd Mat Sub Rec Scr Fac Was Fac Low Low Zio Pro Fac Ext Cet Arc Hub Fac Res Arm Lab Res Qua Sec Combat Hostiles Destroyed 216 | . 11 11 3 . 4 . 29 2 1 . 12 . 20 1 1 26 5 7 9 . 19 25 30 Melee 36 | . . . 2 . 2 . . . . . . . . . . . . . . . . 2 30 Guns 147 | . 7 5 . . 2 . 20 1 1 . 6 . 20 1 1 26 . 7 9 . 19 22 . Cannons 4 | . 2 1 1 . . . . . . . . . . . . . . . . . . . . AOE 25 | . 2 5 . . . . 7 . . . 6 . . . . . 5 . . . . . . Classes Destroyed 29 | 1 8 2 1 . 2 1 5 1 . . 3 . . . . 1 . 1 . . . 1 2 Worker 11 | . 3 . . . . . 2 . . . . . . . . 1 . . . . 3 1 1 Builder 10 | . 2 . 1 . . . 2 . . . . . 2 . . 2 . . . . . 1 . Tunneler 2 | 1 1 . . . . . . . . . . . . . . . . . . . . . . Hauler 7 | . 2 . . . . . 1 . . . . 1 1 . . 2 . . . . . . . Recycler 20 | . 3 . 9 . 1 . 6 . . . . . 1 . . . . . . . . . . Mechanic 1 | . . . . . . . . . . . . . . . . . . 1 . . . . . Operator 8 | . 1 . . . . . 2 . . . . . 1 . 4 . . . . . . . . Turret 2 | . . 2 . . . . . . . . . . . . . . . . . . . . . Watcher 11 | . 3 . . . 2 . 2 . . . . . . 1 . . . . 1 . . . 2 Swarmer 33 | . 2 2 . . 1 . 2 . . . 3 . 3 . . . 5 3 . . 4 . 8 Saboteur 2 | . . . . . . . . . . . . . . . . 2 . . . . . . . Grunt 72 | . 9 . . . . . 10 . 1 . 3 . 10 . . 10 . . 3 . 11 9 6 Brawler 3 | . . . . . . . . . . . 1 . . . . 2 . . . . . . . Duelist 3 | . . . . . . . . . . . 1 . 1 . . 1 . . . . . . . Protector 4 | . . . . . . . 2 . . . . . 1 . . 1 . . . . . . . Researcher 3 | . . . . . . . . . . . . . . . . . . . . . . . 3 Sentry 19 | . . . 3 . 1 . 3 . . . . . 3 . 1 1 . . 2 . 1 . 4 Demolisher 3 | . . . . . . . 1 . . . . . . . . 1 . 1 . . . . . Specialist 10 | . . . . . . . 5 . . . . . 1 . . 1 . . 1 . . . 2 Hunter 14 | . . . . . . . 2 1 . . 1 . . . . 2 . . 3 . . 3 2 Programmer 18 | . . . . . 2 . 3 . . . 3 . . . . 1 . . . . 3 . 6 Heavy 1 | . . . . . . . 1 . . . . . . . . . . . . . . . . Behemoth 2 | . . . . . . . . 1 . . . . 1 . . . . . . . . . . Cetus Guard 1 | . . . . . . . . . . . . . . 1 . . . . . . . . . Quarantine Guard 12 | . . . . . . . . . . . . . . . . . . . . . . 12 . Enhanced Grunt 3 | . . . . . . . . . . . . . . . . 3 . . . . . . . Lightning 4 | . . . . . . . . . . . . . . . . 4 . . . . . . . Striker 4 | . . . . . . . . . . . . . . . . . . 3 . . . . 1 Executioner 1 | . . . . . . . . . . . . . . . . . . . . . . . 1 Fortress 1 | . . . . . . . . . . . . . . . . . . . . . . 1 . Subdweller 9 | . . 9 . . . . . . . . . . . . . . . . . . . . . Scrapoid 5 | . . . . . 1 . 1 . . . . . . . . 1 . . 2 . . . . Surgeon 1 | . . . . . . . 1 . . . . . . . . . . . . . . . . Thug 2 | . . . . . . . 2 . . . . . . . . . . . . . . . . Savage 4 | . . . . . . . . . . . . . 1 . . 3 . . . . . . . Martyr 2 | . . . . . . 2 . . . . . . . . . . . . . . . . . Guerrilla 1 | . . . . . . . . . . . . . 1 . . . . . . . . . . Fireman 1 | . . . . . . . . . . . 1 . . . . . . . . . . . . Best Kill Streak 17 | 1 3 5 6 . 2 . 17 1 1 . 6 1 8 1 2 12 5 2 3 . 10 5 5 Combat Bots Only 16 | . 3 3 1 . 2 . 16 1 1 . 6 . 8 1 1 12 5 2 3 . 9 5 5 Max Kills in Single Turn 5 | 1 2 2 2 . 1 1 5 1 1 . 2 1 3 1 1 3 5 2 3 . 2 2 1 Gunslinging 2 | . . . . . . . 1 . . . . . 2 . . 1 . 1 2 . 1 1 . Exploded 5 | . 2 2 . . . . 4 . . . 2 . . . . . 5 . . . . . . Melee 1 | . . . 1 . 1 . . . . . . . . . . . . . . . . 1 1 Uniques/NPCs Destroyed 1 | . . . . . . . . . . . . . . 1 . . . . . . . . . A7 (-5/Cetus) Combat | -11 -10 -10 -8 -8 -6 -6 -6 -6 -6 -6 -5 -5 -5 -5 -5 -5 -4 -3 -3 -3 -2 -2 -2 -------- Run | Yrd Mat Sub Rec Scr Fac Was Fac Low Low Zio Pro Fac Ext Cet Arc Hub Fac Res Arm Lab Res Qua Sec Hostile Shots Fired 2050 | . 30 56 5 10 105 . 227 59 5 . 62 . 127 8 5 162 208 74 52 . 150 279 426 Missed 539 | . 8 24 . 3 33 . 60 19 1 . 17 . 42 1 1 34 60 23 15 . 36 49 113 Intercepted 8 | . . . . . . . . . . . . . . . . . . 8 . . . . . Hits 1511 | . 22 32 5 7 72 . 167 40 4 . 45 . 85 7 4 128 148 51 37 . 114 230 313 Melee 20 | . . . . . . . . . 1 . . . . . . 10 . 5 . . . . 4 Projectile 1491 | . 22 32 5 7 72 . 167 40 3 . 45 . 85 7 4 118 148 46 37 . 114 230 309 AOE 17 | . 3 3 . . 2 . . . . . . . . . . 6 . 2 . . 1 . . Critical Strikes 68 | . . 1 1 1 . . 4 . . . 1 . 7 1 . 10 3 7 . . 3 18 11 Actively Blocked 24 | . . 1 . . . . . . . . . . . . . . . . . . . 17 6 Part Disruptions 5 | . 1 . . . . . 3 . . . . . . . . . . . . . . . 1 Damage Taken 29561 | . 294 920 73 110 1150 . 2649 697 54 . 845 . 1375 220 107 2744 2572 1685 814 . 2313 5224 5715 Core 2803 | . 57 92 27 12 320 . 250 56 . . 122 . 168 . . 209 201 68 29 . 106 229 857 Absorbed by Shields 7530 | . . . . . . . . . . . . . 334 87 26 892 544 . . . 991 3390 1266 Reduced by Siege Mode 463 | . . . . . . . . . . . . . . . . 14 . . 18 . 109 322 . Redirected to Core 324 | . . . . . . . . . . . . . . . . . . . . . . 115 209 Redirected to Shielding 30 | . 8 19 3 . . . . . . . . . . . . . . . . . . . . Ignored by Resistances 1649 | . . . . . . . . . . . . . . . . 37 . . . . . . 1612 Regen/Repaired (Parts) 7936 | . . . . . . 99 134 10 . 687 10 . 105 35 . 324 110 1476 230 62 86 2296 2272 Core Remaining (%) 62 | 100 . . . 24 . . . . . . 12 . . . . 62 82 . . 92 . . . Volleys Fired 602 | 1 49 57 7 . 9 27 82 16 10 1 22 . 55 11 7 58 7 36 28 . 34 82 3 Largest 5 | 2 2 2 2 . 3 2 4 4 2 1 4 . 4 4 4 4 1 5 5 . 5 5 1 Hottest 305 | 90 120 160 160 . 140 112 217 242 150 . 117 . 132 134 140 140 35 305 240 . 296 292 300 Shots Fired 1959 | 2 94 100 14 . 18 53 272 47 19 1 75 . 216 42 27 225 7 107 115 . 167 355 3 Gun 1878 | 2 78 77 . . 14 52 272 47 19 . 72 . 215 42 27 225 7 92 115 . 167 355 . Cannon 60 | . 12 16 14 . . . . . . . . . . . . . . 15 . . . . 3 Launcher 14 | . 4 7 . . . . . . . . 3 . . . . . . . . . . . . Special 7 | . . . . . 4 1 . . . 1 . . 1 . . . . . . . . . . Kinetic 1388 | . 64 80 . . 9 26 110 12 . . 69 . 215 42 27 225 7 36 62 . 99 305 . Thermal 401 | 2 26 16 14 . 3 26 87 26 19 . 3 . . . . . . 22 36 . 68 50 3 Explosive 11 | . 4 4 . . . . . . . . 3 . . . . . . . . . . . . Electromagnetic 152 | . . . . . 2 . 75 9 . . . . . . . . . 49 17 . . . . Robot Hit Streak 42 | . 10 18 5 . 8 20 21 9 6 2 4 . 12 12 3 13 . 9 21 . 13 42 . Robot Miss Streak 8 | . 2 2 1 . 2 3 5 2 8 . 5 . 4 3 4 8 5 5 3 . 2 3 . Penetration Max 2 | . . . . . . 1 1 . . . . . 1 1 1 1 . . . . 1 2 . Secondary Targets 53 | . 1 . . . . . 9 . . . 2 . 7 1 . 14 . 1 3 . 9 6 . Max Gunslinging Chain 2 | . 1 . . . . . 1 . . . 1 . 2 1 . 2 . 1 2 . 1 1 . Capacitor 15 | . . . . . . . . . . . . . . . . . . 15 . . . . . Shots Hit Robots 1372 | . 61 72 20 . 28 52 151 31 7 1 43 3 116 33 15 121 . 61 68 . 117 269 103 Core Hits 689 | 1 36 24 11 . 8 10 136 6 3 . 45 . 67 11 8 76 1 21 31 . 52 98 44 Critical Kills 54 | . . . 1 . 1 . 2 . . . . . 5 . 1 12 . . 6 . 13 13 . Critical Parts Destroyed 73 | . . . 1 . . 1 6 . . . . . 3 2 1 16 . . 6 . 16 21 . Critical Strikes 197 | . 2 . 2 . 1 7 17 6 1 . . 1 8 8 2 30 . . 15 . 34 48 15 Burn 27 | . 2 . . . . 2 8 6 1 . . . . . . . . . 1 . 4 3 . Meltdown 1 | . . . 1 . . . . . . . . . . . . . . . . . . . . Destroy 139 | . . . . . 1 5 8 . . . . . 8 3 2 30 . . 13 . 30 39 . Corrupt 2 | . . . . . . . 1 . . . . . . . . . . . 1 . . . . Smash 1 | . . . 1 . . . . . . . . . . . . . . . . . . . . Sever 26 | . . . . . . . . . . . . . . 5 . . . . . . . 6 15 Impale 1 | . . . . . . . . . . . . 1 . . . . . . . . . . . Melee Attacks 348 | . . . 12 5 22 9 6 . . . . 7 4 23 11 . 11 9 3 8 2 33 183 Kinetic 1 | . . . . . . . . . . . . . . . . . . . . . . 1 . Impact 19 | . . . 4 5 10 . . . . . . . . . . . . . . . . . . Slashing 276 | . . . 8 . 12 9 1 . . . . 1 . 23 11 . 2 . 3 . . 25 181 Piercing 52 | . . . . . . . 5 . . . . 6 4 . . . 9 9 . 8 2 7 2 Sneak Attacks 39 | . . . 6 . 4 8 . . . . . 2 . 9 4 . . 1 . . . . 5 Combat Hostiles 1 | . . . . . . . . . . . . . . . . . . . . . . . 1 Follow-up Attacks 54 | . . . 4 . 3 . . . . . . 1 . . . . . . . . . 5 41 Damage Inflicted 45481 | 12 1165 1691 1007 . 915 1809 5960 737 117 . 1813 150 3368 1439 937 4885 725 1586 1229 . 1965 6136 7835 Guns 26589 | 12 762 818 . . 229 1225 3671 737 117 . 761 . 3368 815 491 4187 . 1145 1229 . 1965 5057 . Cannons 1037 | . 123 223 309 . . . . . . . . . . . . . . 382 . . . . . Explosions 5773 | . 270 650 108 . . . 2278 . . . 1052 . . . . 697 718 . . . . . . Melee 11997 | . . . 590 . 686 584 . . . . . 150 . 624 446 . . 59 . . . 1079 7779 Ramming 85 | . 10 . . . . . 11 . . . . . . . . 1 7 . . . . . 56 Kinetic 20150 | . 658 1096 . . 157 737 1911 282 . . 761 . 3368 815 491 4187 . 453 439 . 725 4070 . Thermal 7223 | 12 227 223 309 . 50 488 1528 339 117 . . . . . . . 718 496 489 . 1240 987 . Explosive 3307 | . 270 372 108 . . . 1505 . . . 1052 . . . . . . . . . . . . Electromagnetic 2719 | . . . . . 22 . 1005 116 . . . . . . . 697 . 578 301 . . . . Impact 570 | . . . 215 . 355 . . . . . . . . . . . . . . . . . . Slashing 11195 | . . . 375 . 331 584 . . . . . 64 . 624 446 . . . . . . 1079 7692 Piercing 232 | . . . . . . . . . . . . 86 . . . . . 59 . . . . 87 Highest Corruption 17 | . . . 2 1 . . 4 4 14 14 . . . 17 17 9 . . . . 2 5 11 Average Corruption 4 | . . . 2 1 . . 3 4 11 14 . . . 13 12 2 . . . . 1 2 9 Corruption Purged 17 | . . . . . . . . . . . . . . . 17 . . . . . . . . Corruption Blocked 10 | . . . . . . . . . . . . . . . . . . . 10 . . . . Effects 199 | . . . 5 . . . 8 9 14 2 . . . 26 9 9 . . . . . 88 29 Message Errors 50 | . . . 2 . . . 2 2 6 1 . . . 9 1 2 . . . . . 21 4 Matter Fused 57 | . . . 1 . . . 4 1 5 1 . . . 12 4 1 . . . . . 19 9 Heat Flow Errors 29 | . . . . . . . . 1 1 . . . . . . 2 . . . . . 20 5 Energy Discharges 20 | . . . 2 . . . . 2 1 . . . . 1 2 1 . . . . . 7 4 Parts Rejected 3 | . . . . . . . . . . . . . . . . 1 . . . . . 1 1 Parts Fused 4 | . . . . . . . . . 1 . . . . . . . . . . . . 1 2 Data Loss (minor) 16 | . . . . . . . . 1 . . . . . 1 1 1 . . . . . 9 3 Data Loss (major) 4 | . . . . . . . . . . . . . . 1 . . . . . . . 2 1 Misfires 9 | . . . . . . . 1 2 . . . . . 1 . . . . . . . 5 . Alerts 1 | . . . . . . . . . . . . . . 1 . . . . . . . . . Weapon Failures 6 | . . . . . . . 1 . . . . . . . 1 1 . . . . . 3 . Overload Shots 3 | . . . . . . . . . . . . . . . . . . . 3 . . . . Overflow Damage 2090 | . 23 . 190 . 86 28 72 . . . 32 53 . 13 226 2 356 19 . . . 68 922 Projectiles 17 | . . . 17 . . . . . . . . . . . . . . . . . . . . Explosions 485 | . 23 . . . . . 72 . . . 32 . . . . 2 356 . . . . . . Melee 1588 | . . . 173 . 86 28 . . . . . 53 . 13 226 . . 19 . . . 68 922 Knockbacks 4 | . . . . . 2 . . . . . . . . . . . . . . . . . 2 Impact 3 | . . . . . 2 . . . . . . . . . . . . . . . . . 1 Kinetic . | . . . . . . . . . . . . . . . . . . . . . . . . Secondary 1 | . . . . . . . . . . . . . . . . . . . . . . . 1 Self-Inflicted Damage 749 | . 2 . . . . . 85 . . . . . . . . 189 473 . . . . . . Shots 9 | . 1 . . . . . 1 . . . . . . . . 2 5 . . . . . . Rammed 9 | . 3 . . . . . 1 . . . . . . . . 1 1 . . . . . 3 Targets Rammed 10 | . 3 . . . . . 2 . . . . . . . . 1 1 . . . . . 3 Kicked . | . . . . . . . . . . . . . . . . . . . . . . . . Crushed 1 | . . . . . . . 1 . . . . . . . . . . . . . . . . Highest Temperature 519 | 30 241 174 426 22 135 200 368 200 200 . 54 . 263 55 45 519 40 468 420 . 248 514 176 Average Temperature 112 | 18 64 60 174 15 52 82 140 150 114 . 16 . 83 20 19 144 30 154 112 . 84 96 79 Received Heat Transfer 2884 | . 120 132 45 73 90 . 330 63 18 . 72 . 453 35 9 452 228 66 81 . 202 106 309 Effects 35 | . . . 3 . . . 7 2 . . . . . . . 10 . 9 1 . . 3 . Shutdowns 13 | . . . 1 . . . . . . . . . . . . 4 . 5 1 . . 2 . Energy Bleed 7 | . . . 2 . . . 2 . . . . . . . . 2 . . . . . 1 . Interference 11 | . . . . . . . 5 2 . . . . . . . 2 . 2 . . . . . Short Circuit 2 | . . . . . . . . . . . . . . . . 1 . 1 . . . . . Damage (minor) 2 | . . . . . . . . . . . . . . . . 1 . 1 . . . . . Siege Activations 18 | . . . . . . . . . . . . . . . . 3 . . 1 . 3 11 . Total Turns 328 | . . . . . . . . . . . . . . . . 47 . . 10 . 39 232 . Longest Duration 42 | . . . . . . . . . . . . . . . . 36 . . 10 . 29 42 . Martial Activations . | . . . . . . . . . . . . . . . . . . . . . . . . Shielding Activations . | . . . . . . . . . . . . . . . . . . . . . . . . Robots Disrupted 3 | . . . . . . . 2 . . . . . . . . . . 1 . . . . . Combat Hostiles 3 | . . . . . . . 2 . . . . . . . . . . 1 . . . . . Robots Corrupted 8 | . . . . . 2 . 1 . . . . . . . . 5 . . . . . . . Combat Hostiles 1 | . . . . . . . 1 . . . . . . . . . . . . . . . . Parts Fried 14 | . . . . . 1 . 4 . . . . . . . . 7 . . 2 . . . . Impact Corruptions 5 | . . . 2 . 3 . . . . . . . . . . . . . . . . . . Robots Melted 3 | . . . 1 . . . 1 1 . . . . . . . . . . . . . . . Combat Hostiles 2 | . . . . . . . 1 1 . . . . . . . . . . . . . . . Parts Melted 47 | . 2 3 1 . . . 10 6 2 . 1 . 5 . . . . . 2 . 12 3 . Heat Transferred 13311 | 37 692 296 407 . 100 1350 3341 1420 411 . . . . . . . 400 533 883 . 1850 1591 . Parts Sabotaged . | . . . . . . . . . . . . . . . . . . . . . . . . Parts Stolen 1 | . . . . . . . . . 1 . . . . . . . . . . . . . . Parts Stripped 18 | . . . . . . . . . . . . . . . . . . . . . . 18 . Power Chain Reactions 2 | . . . . . . . 2 . . . . . . . . . . . . . . . . Alert | -11 -10 -10 -8 -8 -6 -6 -6 -6 -6 -6 -5 -5 -5 -5 -5 -5 -4 -3 -3 -3 -2 -2 -2 ------- Run | Yrd Mat Sub Rec Scr Fac Was Fac Low Low Zio Pro Fac Ext Cet Arc Hub Fac Res Arm Lab Res Qua Sec Maximum Alert Level 5 | . . . . . . . 4 . . . . 2 5 4 2 5 5 4 3 . 2 1 3 Low Security (%) 62 | 100 100 . 100 . 100 100 10 . . . . . 13 . . 5 . . 65 . 74 98 21 Level 1 5 | . . . . . . . . . . . . 40 32 . 4 6 . . 11 . 8 1 25 Level 2 6 | . . . . . . . . . . . . 59 1 . 95 7 . . . . 17 . 31 Level 3 12 | . . . . . . . 68 . . . . . 18 28 . 5 . 75 23 . . . 20 Level 4 8 | . . . . . . . 20 . . . . . 20 71 . 11 . 24 . . . . . Level 5 3 | . . . . . . . . . . . . . 13 . . 46 25 . . . . . . High Security 1 | . . . . . . . . . . . . . . . . 17 74 . . . . . . Max Security . | . . . . . . . . . . . . . . . . . . . . . . . . Peak Influence 3565 | 5 115 . 120 . 175 54 1266 . . . . 468 1981 1363 660 3565 2018 1561 819 . 686 372 768 Initial 1746 | . . . 57 . . 54 . . . . . 468 172 1093 521 136 1746 1100 814 . . 372 76 Average 407 | . 15 . 26 . 84 1 908 . . . . 409 840 1178 525 1838 1848 1108 265 . 203 60 440 Influence Increases 17896 | 5 397 125 370 . 485 11 2216 60 20 . 1010 26 2651 848 303 4145 326 1053 527 . 1043 958 1317 Destroy 0b10 Robot/C 7160 | . 220 80 60 . 240 . 800 40 20 . 500 . 1060 340 80 1200 120 480 260 . 500 500 660 Destroy 0b10 Robot/NC 455 | 5 75 . 50 . 15 . 105 . . . . 5 55 10 20 65 . 5 5 . 15 10 15 Destroy Leader 1338 | . 50 . . . 94 . 212 20 . . 40 2 124 30 . 222 20 80 72 . 100 150 122 Allied During Kill 4567 | . . . . . 101 . 732 . . . 470 5 1236 380 100 1124 3 190 100 . 126 . . Successful Hack 347 | . 15 . 12 . . . 14 . . . . . 17 . . 21 . 23 21 . 42 115 67 Select Force Hacks 210 | . . . 210 . . . . . . . . . . . . . . . . . . . . Disable Machine 1305 | . . . 30 . 30 . 255 . . . . . 45 30 75 405 135 . 45 . 15 150 90 Anti-Garrison Action 550 | . . . . . . . . . . . . . . . . 200 . 150 . . 200 . . Destroy Structure 1424 | . 37 . 8 . 5 11 98 . . . . 14 114 58 28 728 48 80 24 . 45 33 93 Partial Spotted 15 | . . . . . . . . . . . . . . . . . . . . . . . 15 Lose Combat Pursuer 525 | . . 45 . . . . . . . . . . . . . 180 . 45 . . . . 255 Influence Decreases 17191 | 5 290 113 470 19 329 167 954 658 297 387 266 416 1052 1498 1216 970 1909 1544 1746 332 380 1485 688 Entered New Map 7752 | . . 52 62 19 . 102 . 468 127 387 . 276 182 860 782 254 1819 942 737 332 . 291 60 Time Decay 6354 | 5 280 61 408 . 279 65 464 160 170 . 206 130 510 498 334 386 30 502 369 . 260 695 542 Lost Part 470 | . 10 . . . 10 . 120 30 . . . 10 10 . . 90 60 20 . . 20 70 20 Lost Ally 1370 | . . . . . 40 . 370 . . . 60 . 200 140 100 240 . 80 40 . 100 . . Purge Threat 1245 | . . . . . . . . . . . . . 150 . . . . . 600 . . 429 66 Squads Dispatched 100 | . 2 . . . 6 . 10 . . . 1 3 9 . . 18 9 11 6 . 7 5 13 Investigation 24 | . 1 . . . 1 . . . . . . 1 6 . . 2 . 5 2 . 1 4 1 Extermination 13 | . . . . . 2 . 3 . . . . . . . . 1 . . 2 . 1 1 3 Reinforcement 35 | . 1 . . . . . 4 . . . . 2 2 . . 7 1 6 2 . 4 . 6 Assault 20 | . . . . . . . . . . . 1 . 1 . . 8 8 . . . . . 2 Garrison 7 | . . . . . 3 . 3 . . . . . . . . . . . . . 1 . . Intercept 1 | . . . . . . . . . . . . . . . . . . . . . . . 1 Searches Triggered . | . . . . . . . . . . . . . . . . . . . . . . . . Unchained Authorized 1 | . . . . . . . . . . . . . . . . . . . 1 . . . . Construction Impeded 7 | . . . . . . . 1 . . . . . 2 . . 1 1 . . . 2 . . Haulers Reinforced 6 | . . . . . . . . . . . . 1 . . . 1 . 3 . . 1 . . Active Scanning Responses . | . . . . . . . . . . . . . . . . . . . . . . . . Cargo Convoy Interrupts 1 | . . . . . . . 1 . . . . . . . . . . . . . . . . Stealth | -11 -10 -10 -8 -8 -6 -6 -6 -6 -6 -6 -5 -5 -5 -5 -5 -5 -4 -3 -3 -3 -2 -2 -2 --------- Run | Yrd Mat Sub Rec Scr Fac Was Fac Low Low Zio Pro Fac Ext Cet Arc Hub Fac Res Arm Lab Res Qua Sec Distress Signals 21 | . . . . . . . 3 . . . . . 2 2 . 1 1 5 2 . 1 . 4 Communications Jammed . | . . . . . . . . . . . . . . . . . . . . . . . . Distress Signals . | . . . . . . . . . . . . . . . . . . . . . . . . Times Spotted 526 | . 22 11 2 8 13 . 47 2 2 . 21 1 48 13 10 85 24 53 15 . 29 33 87 Peak Tracking Total 19 | . 3 3 1 4 3 . 12 1 1 . 9 2 7 5 2 14 18 7 4 . 7 7 19 Tactical Retreats 20 | . . 1 . 1 . . . . . . . . . . . 5 . 2 . . . . 11 Traps | -11 -10 -10 -8 -8 -6 -6 -6 -6 -6 -6 -5 -5 -5 -5 -5 -5 -4 -3 -3 -3 -2 -2 -2 ------- Run | Yrd Mat Sub Rec Scr Fac Was Fac Low Low Zio Pro Fac Ext Cet Arc Hub Fac Res Arm Lab Res Qua Sec Traps Triggered 17 | . 6 4 . . 1 . 1 . . . . . . . . 2 . 1 1 . . 1 . Indirectly . | . . . . . . . . . . . . . . . . . . . . . . . . Trap Hack Attempts . | . . . . . . . . . . . . . . . . . . . . . . . . Triggered . | . . . . . . . . . . . . . . . . . . . . . . . . Disarmed . | . . . . . . . . . . . . . . . . . . . . . . . . Reprogrammed . | . . . . . . . . . . . . . . . . . . . . . . . . Reused . | . . . . . . . . . . . . . . . . . . . . . . . . Traps Extracted . | . . . . . . . . . . . . . . . . . . . . . . . . Installed . | . . . . . . . . . . . . . . . . . . . . . . . . Triggered . | . . . . . . . . . . . . . . . . . . . . . . . . Machines | -11 -10 -10 -8 -8 -6 -6 -6 -6 -6 -6 -5 -5 -5 -5 -5 -5 -4 -3 -3 -3 -2 -2 -2 ---------- Run | Yrd Mat Sub Rec Scr Fac Was Fac Low Low Zio Pro Fac Ext Cet Arc Hub Fac Res Arm Lab Res Qua Sec Machines Disabled 106 | . . 3 2 3 2 . 17 . . . 2 . 5 4 5 27 9 1 3 2 1 10 10 Max in Single Turn 9 | . . 2 1 1 1 . 4 . . . 2 . 1 1 2 9 9 1 1 1 . 1 3 Garrison Access 4 | . . . . . . . . . . . . . . . . 2 . 1 . . 1 . . Network Hub 4 | . . . . . . . . . . . . . . . . 4 . . . . . . . Machines Repaired . | . . . . . . . . . . . . . . . . . . . . . . . . Machines Dismantled . | . . . . . . . . . . . . . . . . . . . . . . . . Machines Sabotaged . | . . . . . . . . . . . . . . . . . . . . . . . . Overloaded Fab Kills . | . . . . . . . . . . . . . . . . . . . . . . . . Hacking | -11 -10 -10 -8 -8 -6 -6 -6 -6 -6 -6 -5 -5 -5 -5 -5 -5 -4 -3 -3 -3 -2 -2 -2 --------- Run | Yrd Mat Sub Rec Scr Fac Was Fac Low Low Zio Pro Fac Ext Cet Arc Hub Fac Res Arm Lab Res Qua Sec Machines Accessed 87 | . 3 1 13 3 2 . 4 . . . . 3 19 . . 5 . 6 5 . 4 13 6 Terminals 55 | . 3 . 6 . . . 3 . . . . 2 17 . . 3 . 3 3 . 3 7 5 Fabricators 2 | . . . . . . . 1 . . . . . . . . . . 1 . . . . . Repair Stations 4 | . . . . . . . . . . . . . . . . . . 1 . . . 2 1 Recycling Units 14 | . . . 7 . 1 . . . . . . 1 2 . . . . 1 2 . . . . Scanalyzers 3 | . . . . . . . . . . . . . . . . . . . . . . 3 . Garrison Access 5 | . . . . . 1 . . . . . . . . . . 2 . . . . 1 1 . Total Hacks 282 | . 4 1 24 9 2 . 8 . . . . 3 39 . . 5 . 25 22 . 14 94 32 Successful 110 | . 2 1 12 9 1 . 3 . . . . 3 16 . . 3 . 8 11 . 5 23 13 Failed 172 | . 2 . 12 . 1 . 5 . . . . . 23 . . 2 . 17 11 . 9 71 19 Catastrophic 46 | . . . 2 . 1 . 1 . . . . . . . . 1 . 6 4 . 6 19 6 Database Lockouts . | . . . . . . . . . . . . . . . . . . . . . . . . Manual 147 | . 4 . 25 . 1 . 6 . . 1 . 1 12 1 . 3 . 11 12 . 11 43 16 Terminals 179 | . 4 . 14 . . . 6 . . . . 2 36 . . 3 . 14 20 . 12 44 24 Fabricators 4 | . . . . . . . 2 . . . . . . . . . . 2 . . . . . Repair Stations 43 | . . . . . . . . . . . . . . . . . . 8 . . . 27 8 Recycling Units 18 | . . . 10 . 1 . . . . . . 1 3 . . . . 1 2 . . . . Scanalyzers 22 | . . . . . . . . . . . . . . . . . . . . . . 22 . Garrison Access 6 | . . . . . 1 . . . . . . . . . . 2 . . . . 2 1 . Terminal Hacks 48 | . 2 1 . 9 . . 1 . . . . 2 11 . . . . 1 9 . 3 4 5 Record 8 | . . . . 8 . . . . . . . . . . . . . . . . . . . Part Schematic 2 | . 1 . . . . . . . . . . . . . . . . . 1 . . . . Robot Schematic 1 | . . . . . . . . . . . . . . . . . . . . . . 1 . Open Door 12 | . . . . . . . . . . . . 1 10 . . . . . . . . . 1 Branch Access Points 4 | . . . . . . . 1 . . . . 1 . . . . . 1 . . 1 . . Machine Index 1 | . . . . . . . . . . . . . . . . . . . . . . . 1 Terminal Index 1 | . . . . . . . . . . . . . . . . . . . 1 . . . . Alert Level 1 | . . . . . . . . . . . . . . . . . . . 1 . . . . Unreport Threat 10 | . . . . . . . . . . . . . 1 . . . . . 4 . . 3 2 Hauler Manifests 1 | . . . . . . . . . . . . . . . . . . . . . 1 . . Registered Components 3 | . 1 . . . . . . . . . . . . . . . . . . . 1 . 1 Zone Layout 2 | . . . . . . . . . . . . . . . . . . . 2 . . . . Proto ID Catalog 2 | . . 1 . 1 . . . . . . . . . . . . . . . . . . . Fabricator Hacks 2 | . . . . . . . 1 . . . . . . . . . . 1 . . . . . Load Schematic 1 | . . . . . . . . . . . . . . . . . . 1 . . . . . Build 1 | . . . . . . . 1 . . . . . . . . . . . . . . . . Repair Station Hacks 21 | . . . . . . . . . . . . . . . . . . 5 . . . 11 5 Scan Component 14 | . . . . . . . . . . . . . . . . . . 3 . . . 8 3 Repair 7 | . . . . . . . . . . . . . . . . . . 2 . . . 3 2 Recycling Unit Hacks . | . . . . . . . . . . . . . . . . . . . . . . . . Scanalyzer 6 | . . . . . . . . . . . . . . . . . . . . . . 6 . Insert Component 4 | . . . . . . . . . . . . . . . . . . . . . . 4 . Analyze 2 | . . . . . . . . . . . . . . . . . . . . . . 2 . Garrison Access Hacks 1 | . . . . . . . . . . . . . . . . 1 . . . . . . . Seal Access 1 | . . . . . . . . . . . . . . . . 1 . . . . . . . Unauthorized Hacks 32 | . . . 12 . 1 . 1 . . . . 1 5 . . 2 . 1 2 . 2 2 3 Terminals 16 | . . . 5 . . . 1 . . . . . 3 . . 1 . . . . 1 2 3 Botnet 11 | . . . . . . . 1 . . . . . 3 . . 1 . . . . 1 2 3 Skim 5 | . . . 5 . . . . . . . . . . . . . . . . . . . . Fabricators . | . . . . . . . . . . . . . . . . . . . . . . . . Repair Stations . | . . . . . . . . . . . . . . . . . . . . . . . . Recycling Units 14 | . . . 7 . 1 . . . . . . 1 2 . . . . 1 2 . . . . Tunnel 7 | . . . 7 . . . . . . . . . . . . . . . . . . . . Scrapoids 7 | . . . . . 1 . . . . . . 1 2 . . . . 1 2 . . . . Scanalyzers . | . . . . . . . . . . . . . . . . . . . . . . . . Garrison Access 2 | . . . . . . . . . . . . . . . . 1 . . . . 1 . . Jam 2 | . . . . . . . . . . . . . . . . 1 . . . . 1 . . Data Cores Recovered 4 | . . . . . . . 2 . . . . . . . . . . 2 . . . . . Used 2 | . . . . . . . 2 . . . . . . . . . . . . . . . . Hacking Detections 53 | . 2 . 6 . 1 . 2 . . . . . 13 1 . 3 . 5 3 . 2 12 3 Full Trace Events 8 | . . . . . . . . . . . . . 4 . . . . . . . . 3 1 Feedback Events . | . . . . . . . . . . . . . . . . . . . . . . . . Feedback Blocked . | . . . . . . . . . . . . . . . . . . . . . . . . Robot Schematics Acquired 6 | . . . . . . . . . . 3 . . . . . . . . . . . 1 2 Robots Built . | . . . . . . . . . . . . . . . . . . . . . . . . Authchips . | . . . . . . . . . . . . . . . . . . . . . . . . Time . | . . . . . . . . . . . . . . . . . . . . . . . . Total Robot Build Rating . | . . . . . . . . . . . . . . . . . . . . . . . . Part Schematics Acquired 18 | . 1 . . . . . . . . 13 . . . . . . . . . . . . 4 Parts Built 2 | . . . . . . . 2 . . . . . . . . . . . . . . . . Authchips . | . . . . . . . . . . . . . . . . . . . . . . . . Time 106 | . . . . . . . 106 . . . . . . . . . . . . . . . . Total Part Build Rating 12 | . . . . . . . 12 . . . . . . . . . . . . . . . . Part Studies Acquired . | . . . . . . . . . . . . . . . . . . . . . . . . Parts Repaired 7 | . . . . . . . . . . . . . . . . . . 2 . . . 3 2 Time 535 | . . . . . . . . . . . . . . . . . . 272 . . . 152 111 Parts Recycled . | . . . . . . . . . . . . . . . . . . . . . . . . Recycled Matter . | . . . . . . . . . . . . . . . . . . . . . . . . Retrieved Matter . | . . . . . . . . . . . . . . . . . . . . . . . . Retrieved Components . | . . . . . . . . . . . . . . . . . . . . . . . . Parts Scanalyzed 1 | . . . . . . . . . . . . . . . . . . . . . . 1 . Part Schematics Acquired . | . . . . . . . . . . . . . . . . . . . . . . . . Parts Damaged 2 | . . . . . . . . . . . . . . . . . . . . . . 2 . Bothacking | -11 -10 -10 -8 -8 -6 -6 -6 -6 -6 -6 -5 -5 -5 -5 -5 -5 -4 -3 -3 -3 -2 -2 -2 ------------ Run | Yrd Mat Sub Rec Scr Fac Was Fac Low Low Zio Pro Fac Ext Cet Arc Hub Fac Res Arm Lab Res Qua Sec Used RIF Installer . | . . . . . . . . . . . . . . . . . . . . . . . . Robots Hacked . | . . . . . . . . . . . . . . . . . . . . . . . . Non-combat . | . . . . . . . . . . . . . . . . . . . . . . . . Combat . | . . . . . . . . . . . . . . . . . . . . . . . . Robot Hacks Applied . | . . . . . . . . . . . . . . . . . . . . . . . . Relay Couplers Released 4 | . . . . . . . . . . . . . . . . . . 1 . . 3 . . Machine Destruction 1 | . . . . . . . . . . . . . . . . . . 1 . . . . . Programmers 3 | . . . . . . . . . . . . . . . . . . . . . 3 . . Fabnet Peak Effective % . | . . . . . . . . . . . . . . . . . . . . . . . . Robots Rewired 17 | . . . . . . . . . . . 2 . 15 . . . . . . . . . . Allies Hacked 6 | . . . . . . . . . . . 1 . 1 . . 1 . . . . 3 . . Hacks Repelled 2 | . . . . . . . . . . . . . . . . . . . . . 2 . . Allies | -11 -10 -10 -8 -8 -6 -6 -6 -6 -6 -6 -5 -5 -5 -5 -5 -5 -4 -3 -3 -3 -2 -2 -2 -------- Run | Yrd Mat Sub Rec Scr Fac Was Fac Low Low Zio Pro Fac Ext Cet Arc Hub Fac Res Arm Lab Res Qua Sec Total Allies 106 | . . . . . 10 20 . . . 9 2 5 39 6 . . . 5 10 . . . . Largest Group 37 | . . . . . 6 24 24 . . 9 8 11 37 35 30 25 . 5 5 5 5 . . Highest-Rated Group 1810 | . . . . . 244 874 874 . . 395 375 548 1556 1810 1554 1357 . 323 323 323 323 . . Highest-Rated Ally 159 | . . . . . 47 50 50 . . 96 96 96 159 159 110 110 . 67 67 67 67 . . Initial UFD Resources 24 | . . . . . 24 21 21 21 21 21 24 24 21 15 15 15 19 22 19 13 15 15 15 Total Orders 13 | . . . . . . . . . . . . . . . . . . . 5 2 3 3 . STAY 1 | . . . . . . . . . . . . . . . . . . . . 1 . . . FOLLOW 1 | . . . . . . . . . . . . . . . . . . . . 1 . . . EXPLORE 7 | . . . . . . . . . . . . . . . . . . . 3 . 2 2 . RETURN 4 | . . . . . . . . . . . . . . . . . . . 2 . 1 1 . Ally Attacks 1214 | . . . . . 59 . 162 . . . 91 6 261 128 43 276 1 114 19 . 54 . . Total Damage 28977 | . . . . . 938 . 2987 . . . 1860 65 5482 3309 1084 8567 66 2858 276 . 1485 . . Kills 178 | . . . . . 9 . 18 . . . 13 . 41 20 3 45 1 18 4 . 6 . . Allies Corrupted 13 | . . . . . . . 2 . . . 1 . 1 1 . 8 . . . . . . . Allies Melted 6 | . . . . 3 . . 2 . . . . . . . . 1 . . . . . . . Turrets Deployed 1 | . . . . . . . . . . . . . . . . . 1 . . . . . . Intel | -11 -10 -10 -8 -8 -6 -6 -6 -6 -6 -6 -5 -5 -5 -5 -5 -5 -4 -3 -3 -3 -2 -2 -2 ------- Run | Yrd Mat Sub Rec Scr Fac Was Fac Low Low Zio Pro Fac Ext Cet Arc Hub Fac Res Arm Lab Res Qua Sec Active Infowar (turns) 12103 | . . . . . 3 69 338 . . 419 530 267 1399 1297 755 914 268 1337 571 517 99 1839 1481 Sensors 1997 | . . . . . . . . . . . . . . . . . . . . . . 797 1200 Terrain 1644 | . . . . . . . . . . . . . . . 487 898 259 . . . . . . Structural 3411 | . . . . . 3 69 338 . . . . 126 . . . 5 . . 13 517 99 1365 876 Decoding 7453 | . . . . . . . . . . 419 530 267 1399 1297 755 624 267 1337 558 . . . . Cloaking 2 | . . . . . . . . . . . . . . . . . . . . . . 2 . ECM 2 | . . . . . . . . . . . . . . . . . . . 2 . . . . Robot Analysis Total . | . . . . . . . . . . . . . . . . . . . . . . . . Derelict Logs Recovered 7 | . . 1 . 5 . . . . 1 . . . . . . . . . . . . . . Drone Launches 8 | . . . . . . . . . . . . . . . . . . . 4 . 2 2 . Drone Recoveries 5 | . . . . . . . . . . . . . . . . . . . 2 . 1 2 . Decoded 0b10 Intel 225 | . . . . . . . . . . . . 8 29 15 3 20 16 93 41 . . . . Traps 8 | . . . . . . . . . . . . . 8 . . . . . . . . . . Emergency Access 4 | . . . . . . . . . . . . . 2 . . 2 . . . . . . . Items 193 | . . . . . . . . . . . . 6 15 7 . 15 16 93 41 . . . . Machines 9 | . . . . . . . . . . . . 1 3 4 . 1 . . . . . . . Patrols 3 | . . . . . . . . . . . . 1 . 2 . . . . . . . . . Guards 2 | . . . . . . . . . . . . . . . . 2 . . . . . . . Exits 6 | . . . . . . . . . . . . . 1 2 3 . . . . . . . . Exploration | -11 -10 -10 -8 -8 -6 -6 -6 -6 -6 -6 -5 -5 -5 -5 -5 -5 -4 -3 -3 -3 -2 -2 -2 ------------- Run | Yrd Mat Sub Rec Scr Fac Was Fac Low Low Zio Pro Fac Ext Cet Arc Hub Fac Res Arm Lab Res Qua Sec Turns Passed 32999 | 97 2884 1834 1850 2619 839 2007 1308 326 343 2137 530 267 1399 1333 755 1088 268 1357 880 517 699 6019 1643 Spaces Moved 17694 | 53 781 830 1208 1653 485 1018 717 293 323 2006 346 161 799 613 272 508 156 669 428 232 322 3129 692 Core 150 | 4 . . . 142 4 . . . . . . . . . . . . . . . . . . Treads 7657 | 49 781 473 14 . . 647 253 . . . . . . . . . 23 669 428 232 322 3129 637 Legs 2288 | . . . . . . . . . . . 4 161 799 613 272 439 . . . . . . . Wheels 7544 | . . 357 1194 1511 481 371 464 293 323 2006 342 . . . . 69 133 . . . . . . Hover . | . . . . . . . . . . . . . . . . . . . . . . . . Flight . | . . . . . . . . . . . . . . . . . . . . . . . . Fastest Speed 50 | 50 160 160 135 50 90 90 90 90 80 70 120 116 116 116 116 90 100 152 152 152 152 155 155 Average Speed 141 | 151 160 193 146 132 142 141 130 90 81 100 120 117 118 160 157 156 116 157 152 152 154 160 155 Slowest Speed 1600 | 160 160 320 560 1350 1600 240 240 90 90 120 190 118 187 188 188 260 240 230 152 152 155 241 158 Overloaded Moves 15 | . . . . . . . . . . . . . . . . 15 . . . . . . . Propulsion Burnouts . | . . . . . . . . . . . . . . . . . . . . . . . . Robots Hopped 6 | . . . . . . . . . . . . . . . . 5 1 . . . . . . Potential Cave-ins 23 | . . . . . . . . . . . . . . . . . 2 . . . . . 21 Cave-ins Triggered . | . . . . . . . . . . . . . . . . . . . . . . . . Teleports 4 | . . . . . . . . . . . . . . . . . . . . . . 1 3 Microwarps 4 | . . . . . . . . . . . . . . . . . . . . . . . 4 Exploration Rate (%) 54 | 4 82 59 94 86 9 91 20 43 44 83 52 4 85 63 85 66 6 25 50 93 20 95 53 Regions Visited 23 Branch Regions 15 Pre-discovered Areas 15 | . . . 8 7 . . . . . . . . . . . . . . . . . . . Known Exits Taken 12 | . . . . 1 . . 1 1 . . 1 1 . 1 1 1 . 1 . 1 1 1 . Unknown Exits Taken 9 | 1 1 1 1 . . . . . 1 1 . . 1 . . . 1 . 1 . . . . Scrap Searched 10 | . . . . 3 . . . 1 2 4 . . . . . . . . . . . . . Spaces Dug 111 | . . . . 1 1 . 4 . . . . 3 2 14 7 24 7 7 4 . 2 1 34 Terrain Destroyed 795 | . 36 63 8 1 1 11 107 2 . . 20 3 25 18 11 394 26 9 5 . 2 14 39 Melee 60 | . . . . 1 1 . 4 . . . . 3 2 14 7 . 7 6 2 . 2 1 10 Projectile 206 | . . . 1 . . 11 49 2 . . 1 . 23 4 4 72 1 3 2 . . 4 29 AOE 518 | . 36 63 7 . . . 54 . . . 19 . . . . 321 18 . . . . . . Terrain Rammed . | . . . . . . . . . . . . . . . . . . . . . . . . Walls Destroyed . | . . . . . . . . . . . . . . . . . . . . . . . . Machines Disabled . | . . . . . . . . . . . . . . . . . . . . . . . . Actions | -11 -10 -10 -8 -8 -6 -6 -6 -6 -6 -6 -5 -5 -5 -5 -5 -5 -4 -3 -3 -3 -2 -2 -2 --------- Run | Yrd Mat Sub Rec Scr Fac Was Fac Low Low Zio Pro Fac Ext Cet Arc Hub Fac Res Arm Lab Res Qua Sec Total 23878 | 65 2321 953 1265 2092 588 1545 945 325 384 2117 411 233 1114 903 566 652 213 913 592 381 428 3868 1004 Wait 3684 | . 1434 12 6 333 22 449 83 13 42 39 18 24 81 150 226 31 14 57 19 123 22 371 115 Move 17614 | 52 780 829 1207 1652 485 1017 716 292 322 2005 345 160 798 612 271 502 153 668 427 231 321 3128 641 Hop 2 | . . . . . . . . . . . . . . . . 1 1 . . . . . . Pick Up 407 | 6 13 32 13 46 12 10 15 . 4 55 6 8 9 24 13 2 7 42 20 5 5 41 19 Fast Attach 247 | 6 17 . . 8 11 4 6 1 1 5 . 6 7 16 7 9 2 21 25 2 6 65 22 Attach 125 | . 2 7 . 2 8 1 5 1 2 3 5 5 1 2 3 9 11 12 4 1 3 16 22 Detach 41 | . 2 . . . 2 1 1 1 . 1 1 . . 7 . 7 5 4 1 . . 3 5 Swap 217 | . 4 11 9 2 12 5 9 1 . 2 5 2 3 14 7 11 . 18 20 4 26 34 18 Drop 486 | . 17 5 15 44 10 21 12 . 3 6 3 22 13 44 21 12 1 46 44 7 9 101 30 Fire 602 | 1 49 57 7 . 9 27 82 16 10 1 22 . 55 11 7 58 7 36 28 . 34 82 3 Melee 273 | . . . 8 5 17 9 6 . . . . 6 4 23 11 . 11 9 3 8 2 27 124 Ram . | . . . . . . . . . . . . . . . . . . . . . . . . Kick . | . . . . . . . . . . . . . . . . . . . . . . . . Crush 9 | . 3 . . . . . 2 . . . . . . . . . 1 . . . . . 3 Escape Stasis 20 | . . . . . . . 8 . . . . . . . . 10 . . . . . . 2 Rewire 150 | . . . . . . 1 . . . . 6 . 143 . . . . . . . . . . Trap . | . . . . . . . . . . . . . . . . . . . . . . . . Miscellaneous 1 | . . . . . . . . . . . . . . . . . . . 1 . . . . Route ------- -11/Scrapyard -10/Materials (discovered 5 exits: [*Mat x2] / [*Min x2] / *Sub) -10/Subcaves (discovered 2 exits: [*Mat] / *Rec) -8/Recycling (discovered 2 exits: *Fac / *Scr) -8/Scraptown (discovered 2 exits: *Fac x2) -6/Factory -6/Waste -6/Factory (discovered 3 exits: *Fac / *Low x2) -6/Lower Caves -6/Lower Caves -6/Zion -5/Proximity Caves -5/Factory (discovered 6 exits: Fac x2 / Upp x2 / *Ext x2) -5/Extension (discovered 2 exits: *Fac / *Cet) -5/Cetus (discovered 2 exits: *Fac / *Arc) -5/Archives (discovered 3 exits: *Fac / *Hub x2) -5/Hub_04(d) (discovered 4 exits: *Fac x4) -4/Factory -3/Research (discovered 4 exits: Res / *Arm / *Tes x2) -3/Armory -3/Lab -2/Research (discovered 2 exits: *Qua x2) -2/Quarantine (discovered 2 exits: *Sec / [*Frg]) -2/Section 7 History --------- Turn | Location | Event 8 | -11/Scrapyard | Discovered new exit (range 15) 98 | -11/Scrapyard | Entered Materials 309 | -10/Materials | Build established: Mutant 392 | -10/Materials | Discovered new exit (range 15) 761 | -10/Materials | Discovered new exit (range 9) 2695 | -10/Materials | Discovered new exit (range 14) 2842 | -10/Materials | Discovered new exit (range 11) 2926 | -10/Materials | Discovered new exit (range 7) 2982 | -10/Materials | Entered Subcaves 3139 | -10/Subcaves | Learned location of 1 exit from Materials 3232 | -10/Subcaves | A swath of the cavern ceiling suddenly collapsed 3461 | -10/Subcaves | Shifting Twisted Machinery released Riot Gun 3892 | -10/Subcaves | Shifting Twisted Machinery released Flamer 3911 | -10/Subcaves | Shifting Twisted Machinery released Spk. Treads 4346 | -10/Subcaves | Core integrity fell below 50% 4465 | -10/Subcaves | Discovered new exit (range 5) 4633 | -10/Subcaves | Visited 4L-MR0's lab 4650 | -10/Subcaves | Found Cargo Legs 4792 | -10/Subcaves | Discovered new exit (range 13) 4816 | -10/Subcaves | Entered Recycling 5495 | -8/Recycling | Discovered new exit (range 10) 6530 | -8/Recycling | Learned Factory fabricator intel 6561 | -8/Recycling | Learned location of 1 exit from Storage 6582 | -8/Recycling | Learned Storage garrison access intel 6592 | -8/Recycling | Learned location of Storage (-8) 6593 | -8/Recycling | Learned Factory terminal intel 6603 | -8/Recycling | Learned location of 1 exit from Lower Caves 6633 | -8/Recycling | Scanned before Scraplab entrance 6652 | -8/Recycling | Entered Scraplab 6663 | -8/Recycling | Discovered new exit (range 3) 6666 | -8/Recycling | Entered Scraptown 6666 | -8/Scraptown | System corruption cleaned by C-Scrubber 6825 | -8/Scraptown | Visited UFD Registry 6825 | -8/Scraptown | Registered with UFD as "Gausschassis" 6896 | -8/Scraptown | Scanned Subdweller tech in exchange for log data 6900 | -8/Scraptown | Learned Factory garrison access intel 6902 | -8/Scraptown | Learned 12 Research zone layouts 6904 | -8/Scraptown | Learned location of Armory (-3) 6907 | -8/Scraptown | Learned location of Zion (-6) 6924 | -8/Scraptown | Discovered new exit (range 11) 6953 | -8/Scraptown | Guru changed UFD alias to "Gunbank" 7014 | -8/Scraptown | Heard Great Nut preacher, LISTEN AND RECITE! 7235 | -8/Scraptown | Visited Assassins FH 7253 | -8/Scraptown | Visited Cyclists 7263 | -8/Scraptown | Entered Cyclist Reading Room 7305 | -8/Scraptown | Visited Fellowship of the Rings 7323 | -8/Scraptown | Visited Artisan Demo Area 7375 | -8/Scraptown | Visited Scrapoid Pod Storage 7396 | -8/Scraptown | Visited Research Penetration Think Tank 7438 | -8/Scraptown | Visited Science Guys 7481 | -8/Scraptown | Visited Curators Association 7672 | -8/Scraptown | Visited Supply Room 7695 | -8/Scraptown | Visited Botcube Research 7729 | -8/Scraptown | Visited Chapter 10 7754 | -8/Scraptown | Visited Abandonware Association 7764 | -8/Scraptown | Learned abandonware demo "OVRCLOCK.EXE" 7768 | -8/Scraptown | Learned abandonware demo "REVENGE.EXE" 7805 | -8/Scraptown | Visited Cartography Club 7849 | -8/Scraptown | Found Surveybot 17 Chip 7870 | -8/Scraptown | Learned location of Extension (-5) 7892 | -8/Scraptown | Found Deep Structural Scanner 8326 | -8/Scraptown | Visited Analyses Database 8386 | -8/Scraptown | Found Lrg. Botcube 8667 | -8/Scraptown | Found Scrapoid Pod 8748 | -8/Scraptown | Met Optimus 8748 | -8/Scraptown | Accepted into 0bPrime 9148 | -8/Scraptown | Civil war broke out across Scraptown 9153 | -8/Scraptown | Found DM-GVY's Chainsaw 9168 | -8/Scraptown | Found Deploy-a-Sentry 9181 | -8/Scraptown | Found Potential Leg 9195 | -8/Scraptown | Lost 3 allies 9223 | -8/Scraptown | Identified exit to Factory 9285 | -8/Scraptown | Entered Factory 9285 | -6/Factory | Evolved 8 slots: Propulsion x4, Utility x2, Weapon x2 9286 | -6/Factory | Loaded intel: 26 terminal locations 9287 | -6/Factory | Loaded intel: 6 fabricator locations 9288 | -6/Factory | Loaded intel: 4 garrison access locations 9306 | -6/Factory | Lost 5 allies 9521 | -6/Factory | Garrison activated, responded to threat 9524 | -6/Factory | Scrapoids reinforcements arrived? 9565 | -6/Factory | Lost 4 parts (1p3n) 9619 | -6/Factory | Attached CPS modules to 06F01-D 9621 | -6/Factory | Attached CPS modules to 06F03-D 9689 | -6/Factory | Found Scrap Suit 9773 | -6/Factory | Scrapoid Pod released 06F10-D (x5) 9781 | -6/Factory | Attached CPS modules to 06F10-D 9783 | -6/Factory | Attached CPS modules to 06F09-D 10124 | -6/Factory | Sucked down chute 10124 | -6/Factory | Entered Waste 10125 | -6/Waste | Joined by Warlord forces that had cleared the area 10129 | -6/Waste | Build established: Scavenger-Scrapper 10199 | -6/Waste | 4 allies followed down the chute 10219 | -6/Waste | 2 allies followed down the chute 10622 | -6/Waste | Attached CPS modules to C-40 Crusher 10883 | -6/Waste | Discovered new exit (range 14) 11652 | -6/Waste | Found Imp. Powered Armor 11996 | -6/Waste | Found Damper Plating 12131 | -6/Waste | Entered Factory 12131 | -6/Factory | Accompanied by 24 allies 12296 | -6/Factory | Destroyed 7 combat bots 12314 | -6/Factory | Allied Derelicts emerged from ambush trap array 12330 | -6/Factory | Discovered new exit (range 7) 12478 | -6/Factory | Garrison activated, responded to threat 12542 | -6/Factory | Lost 6 allies 12689 | -6/Factory | Identified exit to Factory 12975 | -6/Factory | Fabricated Lrn. Proton Cannon (x2) 13015 | -6/Factory | Murdered 4 allies 13077 | -6/Factory | Identified exit to Lower Caves 13179 | -6/Factory | Cargo convoy interrupted 13222 | -6/Factory | Core integrity fell below 50% 13235 | -6/Factory | Lost 12 allies 13298 | -6/Factory | Found Scrap Suit 13307 | -6/Factory | Lost 10 parts (2p3n1u4w) 13308 | -6/Factory | Destroyed 16 combat bots 13439 | -6/Factory | Entered Lower Caves 13440 | -6/Lower Caves | Identified exit to Lower Caves 13441 | -6/Lower Caves | Spotted B-75 Beast 13534 | -6/Lower Caves | Destroyed B-75 Beast 13765 | -6/Lower Caves | Entered another Lower Caves area 13843 | -6/Lower Caves | System corruption reached 10% 13864 | -6/Lower Caves | Learned 8 Factory zone layouts 14099 | -6/Lower Caves | Discovered new exit (range 11) 14108 | -6/Lower Caves | Entered Zion 14137 | -6/Zion | System corruption cleaned by Quarantine Array 14155 | -6/Zion | Visited the Megawrench Repair Shop 14173 | -6/Zion | Discovered new exit (range 12) 14522 | -6/Zion | Gained Derelict followers 14626 | -6/Zion | Build established: Hauler-Scrapper 15166 | -6/Zion | Given A8's code to call for help 15746 | -6/Zion | Attached Cargo Legs, gained temporary slots: Utility x2 15855 | -6/Zion | Megawrench repaired 9 parts 16065 | -6/Zion | Enhanced Grunt warped into view, answering call for help 16074 | -6/Zion | Enhanced Grunt warped into view, answering call for help 16243 | -6/Zion | Attached CPS modules to Enhanced Grunt 16245 | -6/Zion | Entered Proximity Caves 16245 | -5/Proximity Caves | Accompanied by 8 allies 16565 | -5/Proximity Caves | Attracted the attention of an 0b10 outpost 16565 | -5/Proximity Caves | Core integrity fell below 20% 16644 | -5/Proximity Caves | Ambushed by research squad 16735 | -5/Proximity Caves | Discovered exit to Factory (range 9) 16775 | -5/Proximity Caves | Entered Factory 16775 | -5/Factory | Accompanied by 6 allies 16775 | -5/Factory | Evolved 2 slots: Power x1, Utility x1 16776 | -5/Factory | Identified exit to Factory 16913 | -5/Factory | Identified exit to Upper Caves 16913 | -5/Factory | Identified exit to Extension 17015 | -5/Factory | Scrapoids reinforcements arrived? 17042 | -5/Factory | Entered Extension 17042 | -5/Extension | Accompanied by 11 allies 17097 | -5/Extension | Rescued a captive Derelict 17112 | -5/Extension | Rescued a captive Derelict 17116 | -5/Extension | Rescued a captive Derelict 17117 | -5/Extension | Rescued a captive Derelict 17133 | -5/Extension | Rescued a captive Derelict 17229 | -5/Extension | Rescued a captive Derelict 17314 | -5/Extension | Build established: Commander-Gunner 17387 | -5/Extension | Rescued a captive Derelict 17389 | -5/Extension | Rescued a captive Derelict 17390 | -5/Extension | Scrapoid reinforcements arrived 17678 | -5/Extension | Spotted B-75 Beast 17682 | -5/Extension | Allies destroyed B-75 Beast 17700 | -5/Extension | Spotted B-75 Beast 17708 | -5/Extension | Destroyed B-75 Beast 17782 | -5/Extension | Rescued a captive Derelict 17782 | -5/Extension | Rescued a captive Derelict 17866 | -5/Extension | Rescued a captive Derelict 17867 | -5/Extension | Rescued a captive Derelict 17908 | -5/Extension | Scrapoid reinforcements arrived 17921 | -5/Extension | Rescued a captive Derelict 17961 | -5/Extension | Build established: Commander-Tank 17997 | -5/Extension | Rescued A7 18015 | -5/Extension | Attached CPS modules to A7 18088 | -5/Extension | Rescued a captive Derelict 18124 | -5/Extension | Lost 5 allies 18242 | -5/Extension | First assault squad dispatched 18243 | -5/Extension | Discovered new exit (range 6) 18267 | -5/Extension | Disrupted transfer network 18306 | -5/Extension | Destroyed 8 combat bots 18441 | -5/Extension | Entered Cetus 18441 | -5/Cetus | Accompanied by 35 allies (A7) 18441 | -5/Cetus | 1 ally did not survive the journey 18446 | -5/Cetus | Acquired a Cetus Manufacturing Module code from A7 18453 | -5/Cetus | Spotted Cetus Guard 18454 | -5/Cetus | Spotted Cetus Guard 18455 | -5/Cetus | Spotted Cetus Guard 18457 | -5/Cetus | Allies destroyed Cetus Guard 18459 | -5/Cetus | Allies destroyed Cetus Guard 18460 | -5/Cetus | Spotted Cetus Guard 18467 | -5/Cetus | Allies destroyed Cetus Guard 18470 | -5/Cetus | Allies destroyed Cetus Guard 18500 | -5/Cetus | Lost 5 allies 18520 | -5/Cetus | Found Scrap Suit 18610 | -5/Cetus | Started Cetus Manufacturing Module 18635 | -5/Cetus | Manufactured an Enhanced Grunt 18660 | -5/Cetus | Manufactured an Enhanced Grunt 18673 | -5/Cetus | Identified exit to Archives 18685 | -5/Cetus | Manufactured an Enhanced Grunt 18710 | -5/Cetus | Manufactured an Enhanced Grunt 18735 | -5/Cetus | Manufactured an Enhanced Grunt 18740 | -5/Cetus | Spotted Cetus Guard 18741 | -5/Cetus | Spotted Cetus Guard 18743 | -5/Cetus | Spotted Cetus Guard 18748 | -5/Cetus | Destroyed Cetus Guard 18750 | -5/Cetus | Allies destroyed Cetus Guard 18751 | -5/Cetus | Spotted Cetus Guard 18754 | -5/Cetus | Allies destroyed Cetus Guard 18759 | -5/Cetus | Allies destroyed Cetus Guard 18783 | -5/Cetus | Met Revision 17 19164 | -5/Cetus | Lrg. Botcube activated 19191 | -5/Cetus | Security sweep announced 19322 | -5/Cetus | System corruption reached 10% 19498 | -5/Cetus | Found Prototype Protection 19498 | -5/Cetus | Identified Med. Regenerative Plating 19532 | -5/Cetus | Murdered A7 19537 | -5/Cetus | Extracted ID and sensor layout for unrecognized location from A7's data core 19774 | -5/Cetus | Entered Archives 19774 | -5/Archives | Accompanied by 30 allies 19808 | -5/Archives | Identified exit to Hub_04(d) 19843 | -5/Archives | Lost 5 allies 20073 | -5/Archives | Found Scrap Suit 20315 | -5/Archives | Build established: Commander-Skirmisher 20529 | -5/Archives | Entered Hub_04(d) 20529 | -5/Hub_04(d) | Accompanied by 25 allies 20848 | -5/Hub_04(d) | Discovered exit to Factory (range 19) 20971 | -5/Hub_04(d) | P-70 Sage assimilated allied 05E25-D 21000 | -5/Hub_04(d) | Discovered exit to Factory (range 19) 21129 | -5/Hub_04(d) | First assault squad dispatched 21283 | -5/Hub_04(d) | Discovered exit to Factory (range 19) 21295 | -5/Hub_04(d) | Lost 3 allies 21343 | -5/Hub_04(d) | Network Hub disabled 21357 | -5/Hub_04(d) | Network Hub disabled 21389 | -5/Hub_04(d) | Lost 3 allies 21397 | -5/Hub_04(d) | Spotted Lightning 21398 | -5/Hub_04(d) | Spotted Lightning 21399 | -5/Hub_04(d) | Spotted Lightning 21411 | -5/Hub_04(d) | Spotted Lightning 21416 | -5/Hub_04(d) | Spotted Lightning 21418 | -5/Hub_04(d) | Allies destroyed Lightning 21418 | -5/Hub_04(d) | Destroyed Lightning 21418 | -5/Hub_04(d) | Spotted Lightning 21430 | -5/Hub_04(d) | High security lockdown imminent 21430 | -5/Hub_04(d) | Allies destroyed Lightning 21449 | -5/Hub_04(d) | Destroyed Lightning 21452 | -5/Hub_04(d) | Destroyed Lightning 21457 | -5/Hub_04(d) | Destroyed Lightning 21466 | -5/Hub_04(d) | Lost 9 allies 21510 | -5/Hub_04(d) | High security lockdown engaged 21522 | -5/Hub_04(d) | Destroyed 12 combat bots 21574 | -5/Hub_04(d) | Discovered exit to Factory (range 8) 21599 | -5/Hub_04(d) | Network Hub disabled 21599 | -5/Hub_04(d) | Network Hub disabled 21617 | -5/Hub_04(d) | Entered Factory 21617 | -4/Factory | Evolved 2 slots: Utility x2 21630 | -4/Factory | Lost 5 parts (1p4w) 21663 | -4/Factory | Discovered new exit (range 15) 21668 | -4/Factory | DAS Turret deployed 21685 | -4/Factory | High security lockdown imminent 21765 | -4/Factory | High security lockdown engaged 21885 | -4/Factory | Entered Research 21885 | -3/Research | Evolved 2 slots: Utility x1, Weapon x1 21886 | -3/Research | Identified exit to Research 21886 | -3/Research | Identified exit to Testing 21906 | -3/Research | Lost 4 parts (1p2n1w) 22036 | -3/Research | Build established: Scavenger-Mutant 22085 | -3/Research | Revision forces began assault on 0b10 22098 | -3/Research | Found Quantum Capacitor 22130 | -3/Research | Met up with Revision 17++ 22518 | -3/Research | Identified exit to Armory 22521 | -3/Research | Scrapoids reinforcements arrived? 22578 | -3/Research | Repaired Broken Centrium Heavy Treads 22585 | -3/Research | Research terminal network offline 22642 | -3/Research | Spotted B-86 Titan 22657 | -3/Research | Allies destroyed B-86 Titan 22715 | -3/Research | Repaired Broken Centrium Heavy Treads? 22969 | -3/Research | Found Scrap Suit 22978 | -3/Research | Found Prototype Processor 22978 | -3/Research | Identified Exp. Targeting Computer 23015 | -3/Research | Spotted Striker 23029 | -3/Research | Allies destroyed Striker 23053 | -3/Research | Spotted Striker 23057 | -3/Research | Destroyed Striker 23058 | -3/Research | Build established: Scavenger-Tank 23100 | -3/Research | Spotted Striker 23109 | -3/Research | Destroyed Striker 23163 | -3/Research | Spotted Striker 23207 | -3/Research | Destroyed Striker 23210 | -3/Research | Spotted Striker 23234 | -3/Research | Spotted Executioner 23242 | -3/Research | Entered Armory 23243 | -3/Armory | Met VL-GR5, who suggested a friendly competition 23248 | -3/Armory | Lost 6 allies 23286 | -3/Armory | Found Fusion Bomb Launcher 23288 | -3/Armory | Found Fusion Bomb Launcher 23487 | -3/Armory | Found Prototype Processor 23487 | -3/Armory | Identified Exp. Terrain Scan Processor 23494 | -3/Armory | Found Prototype Device 23494 | -3/Armory | Identified Exp. Thermal Shield 23514 | -3/Armory | Found Prototype Device 23514 | -3/Armory | Identified Exp. ECM Suite 23686 | -3/Armory | Scrapoids reinforcements arrived? 23864 | -3/Armory | Unchained authorized (BL-1NK) 24002 | -3/Armory | Lost 4 allies 24039 | -3/Armory | Scrapoid reinforcements arrived 24110 | -3/Armory | Discovered new exit (range 3) 24122 | -3/Armory | Entered Lab 24122 | -3/Lab | Accompanied by 5 allies 24122 | -3/Lab | Discovered exit to Research (range 10) 24151 | -3/Lab | Hidden lab's door opened automatically 24151 | -3/Lab | Sensor layout match revealed 24152 | -3/Lab | Gained access to the hidden lab's interior 24221 | -3/Lab | Found Alien Artifact 24221 | -3/Lab | Identified Integrated Dissipator 24221 | -3/Lab | Installed Integrated Dissipator, increased core heat dissipation (+20) 24235 | -3/Lab | Found Alien Artifact 24253 | -3/Lab | Found Alien Artifact 24279 | -3/Lab | Found Alien Artifact 24331 | -3/Lab | Found Prototype Protection 24332 | -3/Lab | Identified Exp. Powered Armor 24353 | -3/Lab | Build established: Commander-Tank 24363 | -3/Lab | Found Prototype Hackware 24639 | -3/Lab | Entered Research 24639 | -2/Research | Accompanied by 5 allies 24639 | -2/Research | Evolved 2 slots: Power x1, Utility x1 24655 | -2/Research | Identified Core Reset Matrix 24655 | -2/Research | Identified Core Regenerator 24655 | -2/Research | Identified Transdimensional Reconstructor 24655 | -2/Research | Used Core Reset Matrix 24740 | -2/Research | Identified Quantum Router 24742 | -2/Research | Identified exit to Quarantine 25045 | -2/Research | Build established: Hacker-Tank 25132 | -2/Research | Spotted B-90 Cyclops 25146 | -2/Research | Allies destroyed B-90 Cyclops 25150 | -2/Research | Garrison activated, responded to threat 25180 | -2/Research | Lost 3 allies 25218 | -2/Research | Destroyed 9 combat bots 25338 | -2/Research | Entered Quarantine 25339 | -2/Quarantine | Detected hypermatrix surge 25339 | -2/Quarantine | Sensed 15 artifacts in vicinity 25433 | -2/Quarantine | Found Core Stripper 25521 | -2/Quarantine | Found Core Cannon 25634 | -2/Quarantine | Cryocooling Duct disabled 25644 | -2/Quarantine | Cryocooling Duct disabled 25649 | -2/Quarantine | Ambient heat levels rising (+20) 25649 | -2/Quarantine | Non-combat units ordered to evacuate 25659 | -2/Quarantine | Ambient heat levels rising (+20) 25659 | -2/Quarantine | Combat units ordered to evacuate 25756 | -2/Quarantine | Discovered new exit (range 14) 25759 | -2/Quarantine | Quarantine Guard activated 25759 | -2/Quarantine | Spotted Quarantine Guard 25759 | -2/Quarantine | Spotted Quarantine Guard 25760 | -2/Quarantine | Spotted Quarantine Guard 25771 | -2/Quarantine | Spotted Quarantine Guard 25774 | -2/Quarantine | Spotted Quarantine Guard 25796 | -2/Quarantine | Spotted Quarantine Guard 25796 | -2/Quarantine | Spotted Quarantine Guard 25797 | -2/Quarantine | Warped through subspace 25931 | -2/Quarantine | Spotted Quarantine Guard 25960 | -2/Quarantine | Destroyed Quarantine Guard 25977 | -2/Quarantine | Destroyed Quarantine Guard 25987 | -2/Quarantine | Destroyed Quarantine Guard 26013 | -2/Quarantine | Lost 5 parts (2p1n2w) 26066 | -2/Quarantine | Spotted Quarantine Guard 26114 | -2/Quarantine | Destroyed Quarantine Guard 26209 | -2/Quarantine | Destroyed Quarantine Guard 26338 | -2/Quarantine | Build established: Scavenger-Tank 26342 | -2/Quarantine | Repaired Broken Arm. Heavy Treads 26380 | -2/Quarantine | Repaired Adv. Heavy Siege Treads 26550 | -2/Quarantine | Found Phase Redirector 26735 | -2/Quarantine | Destroyed Quarantine Guard 26741 | -2/Quarantine | Build established: Hacker-Tank 26924 | -2/Quarantine | Watched by a mysterious "MATRIX" hacker 26992 | -2/Quarantine | Repaired Broken Nanosword 27317 | -2/Quarantine | Spotted Quarantine Guard 27349 | -2/Quarantine | Destroyed Quarantine Guard 28062 | -2/Quarantine | Build established: Scavenger-Tank 28307 | -2/Quarantine | Spotted Quarantine Guard 28326 | -2/Quarantine | Spotted Quarantine Guard 28333 | -2/Quarantine | Destroyed Quarantine Guard 28350 | -2/Quarantine | Destroyed Quarantine Guard 28700 | -2/Quarantine | Found Sigix Broadsword 28812 | -2/Quarantine | Found Dimensional Node Initializer 28812 | -2/Quarantine | Initialized slip node 28827 | -2/Quarantine | Found Transdimensional Reconstructor 28914 | -2/Quarantine | Destroyed Quarantine Guard 29092 | -2/Quarantine | Spotted Fortress 29101 | -2/Quarantine | Destroyed Fortress 29115 | -2/Quarantine | Found Prototype Device 29115 | -2/Quarantine | Identified Exp. Force Field 29118 | -2/Quarantine | Found Prototype Device 29118 | -2/Quarantine | Identified Thermal Barrier 29138 | -2/Quarantine | Found Unknown Protection 29138 | -2/Quarantine | Identified Hvy. Insulated Plating 29145 | -2/Quarantine | Found Prototype Protection 29145 | -2/Quarantine | Identified Centrium Heavy Armor Plating 29161 | -2/Quarantine | Found Prototype Reactor 29161 | -2/Quarantine | Identified Vortex Chain Reactor 29164 | -2/Quarantine | Found Vortex Chain Reactor 29171 | -2/Quarantine | Found Prototype Device 29171 | -2/Quarantine | Identified Exp. EM Shield 29321 | -2/Quarantine | Found Subatomic Replicator 29323 | -2/Quarantine | Used Subatomic Replicator to replicate Sigix Broadsword 29396 | -2/Quarantine | Build established: Alien-Gladiator 29628 | -2/Quarantine | Found Phase Armor 30034 | -2/Quarantine | Found Dimensional Node Initializer 30043 | -2/Quarantine | Found Hpw. Transdimensional Reconstructor 30053 | -2/Quarantine | Found Hpw. Transdimensional Reconstructor 30055 | -2/Quarantine | Found Hpw. Transdimensional Reconstructor 30305 | -2/Quarantine | Found Core Reset Matrix 30308 | -2/Quarantine | Sensed 6 artifacts in vicinity 31050 | -2/Quarantine | Discovered new exit (range 8) 31050 | -2/Quarantine | Discovered new exit (range 5) 31075 | -2/Quarantine | Identified exit to Section 7 31097 | -2/Quarantine | Destroyed Quarantine Guard 31113 | -2/Quarantine | Destroyed Quarantine Guard 31357 | -2/Quarantine | Entered Section 7 31358 | -2/Section 7 | Detected hypermatrix surge 31358 | -2/Section 7 | Sensed 18 artifacts in vicinity 31508 | -2/Section 7 | Warped through subspace 31593 | -2/Section 7 | Repaired Broken Nanosword 31639 | -2/Section 7 | System corruption reached 10% 31644 | -2/Section 7 | Repaired Broken Force Lance 31675 | -2/Section 7 | Core integrity fell below 50% 31714 | -2/Section 7 | Build established: Hacker-Gladiator 31758 | -2/Section 7 | Found Integrated Dissipator 31758 | -2/Section 7 | Installed Integrated Dissipator, increased core heat dissipation (+20) 31883 | -2/Section 7 | Found Microwarp Drive 32272 | -2/Section 7 | Found Core Reset Matrix 32274 | -2/Section 7 | Sensed 16 artifacts in vicinity 32282 | -2/Section 7 | Found Core Reset Matrix 32334 | -2/Section 7 | Found LRC Insulator 32334 | -2/Section 7 | Installed LRC Insulator, 1 resistance modified: EM +25% 32346 | -2/Section 7 | Found LRC Insulator 32346 | -2/Section 7 | Installed LRC Insulator, 1 resistance modified: EM +25% 32434 | -2/Section 7 | Found Integrity Redistributor 32564 | -2/Section 7 | Spotted Executioner 32566 | -2/Section 7 | Spotted Executioner 32585 | -2/Section 7 | Destroyed Executioner 32607 | -2/Section 7 | First assault squad dispatched 32612 | -2/Section 7 | Found Prototype Processor 32612 | -2/Section 7 | Identified Exp. Core Analyzer 32651 | -2/Section 7 | Spotted Striker 32651 | -2/Section 7 | Spotted Striker 32670 | -2/Section 7 | Spotted Striker 32679 | -2/Section 7 | Spotted Striker 32699 | -2/Section 7 | Destroyed Striker 32775 | -2/Section 7 | Found Sigix Shearcannon 32932 | -2/Section 7 | Spotted Executioner 32932 | -2/Section 7 | Spotted Executioner 32933 | -2/Section 7 | Core integrity fell below 20% 32948 | -2/Section 7 | Warped through subspace 32950 | -2/Section 7 | Warped through subspace 32951 | -2/Section 7 | Used Core Regenerator, restored core integrity (+362) 32976 | -2/Section 7 | Spotted Alpha 7 32979 | -2/Section 7 | Spotted Alpha 7 32998 | -2/Section 7 | Scanned by Researcher 32999 | -2/Section 7 | Intercept squad dispatched 33000 | -2/Section 7 | Self-destructed Last Messages --------------- 32995_ M-36 Artificer repairs G-73 Enforcer. 32996_ Slammed into G-73 Enforcer. 32996_ G-73 Enforcer knocked back. 32998_ C-65 Expert calls for reinforcements. 32998_ ALERT: Hostile activity reported, dispatching reinforcements to area. 32998_ Held in stasis. 32998_ C-65 Expert is analyzing... 32998_ ALERT: Modified LRC-V3 signature confirmed. 32999_ ALERT: LRC-V3 signature pinpointed, intercept squad dispatched. 33000_ Slug penetrates G-73 Enforcer. 33000_ Penetrated by Slug. 33000_ Slug penetrates Thrusters. 33000_ Slug penetrates W-44 Eye. 33000_ W-44 Eye suffers critical hit (Destroy). 33000_ W-44 Eye destroyed. 33000_ M-36 Artificer repairs U-05 Engineer Unknown Wheel. Map ----- +----------------------------------------------------+ | ?????????????####" "????" | | ?????????????####" "?????" | | ?????????????####" " "??????" | | ?????????????####" """ "???????" | | ????????????????#" " "????????" | | ????????????????# " ?????????? | | ?????????????????" ???????????"" | | ?????????????????" """"""?? ????????????? | | ?????????????????" "???????? " ?????????? | | ?????????????????" """""" ????????? | | ?????????????????" ????????? | | ?????????????????" ???????? | | ?????????????????" """""" ???????? | | ?????????????????" !="?????""" ???????? | | ?????????????????" !=%"""""" ""????????? | | ?????????????????" *[| "????????? | | ?????????????????" [ """????????? | | ?????????????????" " ??????? | | ?????????????????" " ??????? | | ?????????????????" ""??????? | | ?????????????????" "" T?????? | | ????????????????#" u"""" ????? | | ????????????????# mg"??" "" ????? | | ????????????????#" """"p "" """ "??????? | | ????????????????#"" gg7 p "???? ???????? | | ????????????????#""" g@ p " " ""???????? | | ????????????????#""" """" " ???????? | | ????????????????#""" =%* ??? """ c "" ???????? | | ????????????????# R = ???"""?? ???????? | | ?????????????? + ????????? ? "???????? | | ????????????? + ?????????? ? ????????? | | ???????????? + ????????????""" ???????? | | ???????????? + ????????????????? ????????? | | ?????????????## # ?????????????????? ????????? | | ??????????????#?#""" ????????????????????????????? | | ????????????????#""" ????????????????????????????? | | ??????????????????""?????????????????????????????? | | ?????!????????????? ?????????????????????????????? | | ?????????????????????????????????????????????????? | | ?????????????????????????????????????????????????? | | ?????????????????????????????????????????????????? | | ?????????????????????????????????????????????????? | | ??????????????????????????????????????????????#### | | ??????????????????????????????????????????????#### | | ????????????????????????????????????????????###### | | ????????????????????????????????????????????###### | | ????????????????????????????############## ####"" | | ????????????????????????????############## ####"" | | ????????????????????????????############## ####"" | | ????????????????????????????############## #### | +----------------------------------------------------+ Best States ------------- Heat Dissipation 114 Energy Generation 75 Energy Capacity 950 Matter Stores 300 Matter Capacity 300 Sight Range 16 Robot Scan Range 16 Terrain Scan Range 20 Terrain Scan Density 1210 Corruption Containment 12 Corruption Block 20 Armor Coverage 1650 Resistance: KI 25 Resistance: TH 50 Resistance: EM 100 Core Shielding 20 Point Defense Rating 320 Evasion (%) 55 Targeting Accuracy 12 Core Analysis 8 Armor Integrity Analysis 40 Recoil Reduction 6 Matter Filtering 30 Energy Filtering 50 Offensive Hacking 24 Defensive Hacking 25 Authchip Count 2 Item Schematics ----------------- Com. Mass Driver | -2/Section 7 | Archive Adv. Dynamic Insulation System | -2/Section 7 | Archive Exp. Focal Shield | -2/Section 7 | Archive Robot Schematics ------------------ S-43 Plague | -2/Section 7 | Archive Fabricated ------------ Lrn. Proton Cannon | x2 | -6/Factory | Preloaded Repaired ---------- Centrium Heavy Treads | 42% | -3/Research | Broken Centrium Heavy Treads | 35% | -3/Research | Broken Arm. Heavy Treads | 12% | -2/Quarantine | Broken Adv. Heavy Siege Treads | 59% | -2/Quarantine Nanosword | 99% | -2/Quarantine | Broken Nanosword | 99% | -2/Section 7 | Broken Force Lance | 63% | -2/Section 7 | Broken Studied --------- None Alien Tech Used ----------------- Integrated Dissipator Core Reset Matrix Transdimensional Reconstructor Sigix Broadsword Dimensional Node Initializer Core Stripper Subatomic Replicator Phase Armor High-powered Transdimensional Reconstructor Core Cannon LRC Insulator Microwarp Drive Core Regenerator Achievements -------------- 404 Superinsulated Challenges ------------ None Game ------ Seed FocalComponentBay Manual? 0 Play Time 04:41:48 Cumulative 632.6 hours Start 2026.09.16 @ 17:23:21 End 2026.09.16 @ 23:09:36 Sessions 1 Manual Loads 0 Difficulty Rogue Special Mode None Game No. 507 Rogue 507 Adventurer 0 Explorer 0 Win Type - Total 21 Types 12/0/4/1/0/0/0/2/0/2 Lore% 70 Gallery% 74 Achievement% 71 Wizard Run 0 Options --------- Layout 1 ASCII 0 Keyboard 0 Movement Mouse Keybinds 0 Fullscreen 2 Font 24/Cog Map View 50x35 Zoom Use 24% Tactical HUD 1 Map Filters NONE Filters NONE Steam 1 RUN: 24e760fe-d1b0-4b9c-a790-d3e1f0cd6989